lending/lending_fUSD_20241229
["ID","MTS","AMOUNT","RATE_DAILY","PERIOD"]
[346983301,1735449049519,-500.0,0.00012982,2]
[346983302,1735449049528,-500.0,0.00012982,2]
[346983303,1735449049537,-500.0,0.00012982,2]
[346983304,1735449049547,-500.0,0.00012982,2]
[346983305,1735449049556,-500.0,0.00012982,2]
[346983306,1735449049566,-500.0,0.00012982,2]
[346983307,1735449049575,-500.0,0.00012982,2]
[346983308,1735449049584,-507.20674922,0.00012982,2]
[346983309,1735449049593,-500.0,0.00012982,2]
[346983310,1735449049603,-500.0,0.00012982,2]
[346983311,1735449049612,-500.0,0.00012982,2]
[346983312,1735449049622,-506.61610718,0.00012982,2]
[346983313,1735449049631,-636.65,0.00012982,2]
[346983314,1735449049640,-845.51,0.00012982,2]
[346983315,1735449049649,-517.42172656,0.00012982,2]
[346983316,1735449049658,-500.0,0.00012982,2]
[346983317,1735449049668,-500.0,0.00012982,2]
[346983318,1735449049677,-500.0,0.00012982,2]
[346983319,1735449049686,-500.0,0.00012982,2]
[346983320,1735449049695,-503.63318957,0.00012982,2]
[346983321,1735449049704,-500.0,0.00012982,2]
[346983322,1735449049713,-567.5,0.00012982,2]
[346983323,1735449049722,-500.0,0.00012982,2]
[346983324,1735449049731,-500.0,0.00012982,2]
[346983325,1735449049740,-500.0,0.00012982,2]
[346983326,1735449049750,-500.0,0.00012982,2]
[346983327,1735449049759,-582.879488,0.00012982,2]
[346983328,1735449049768,-273.13233626,0.00012982,2]
[346983329,1735449049778,-8860.37,0.00012982,2]
[346983330,1735449049788,-500.0,0.00012982,2]
[346983331,1735449049798,-500.0,0.00012982,2]
[346983332,1735449049808,-500.0,0.00012982,2]
[346983333,1735449049818,-703.86,0.00012982,2]
[346983334,1735449049827,-500.0,0.00012982,2]
[346983335,1735449049837,-500.0,0.00012982,2]
[346983336,1735449049846,-500.0,0.00012982,2]
[346983337,1735449049856,-340.18466481,0.00012982,2]
[346983338,1735449049866,-500.0,0.00012982,2]
[346983339,1735449049876,-500.0,0.00012982,2]
[346983340,1735449049885,-500.0,0.00012982,2]
[346983341,1735449049895,-500.0,0.00012982,2]
[346983342,1735449049904,-1101.12,0.00012982,2]
[346983343,1735449049913,-500.0,0.00012982,2]
[346983344,1735449049923,-500.0,0.00012982,2]
[346983345,1735449049932,-500.0,0.00012982,2]
[346983346,1735449049941,-500.0,0.00012982,2]
[346983347,1735449050104,-672.01,0.00012982,2]
[346983348,1735449050114,-500.0,0.00012982,2]
[346983349,1735449050124,-500.0,0.00012982,2]
[346983350,1735449050133,-500.0,0.00012982,2]
[346983351,1735449050142,-500.0,0.00012982,2]
[346983352,1735449050151,-500.0,0.00012982,2]
[346983353,1735449050161,-1227.22,0.00012982,2]
[346983354,1735449050170,-562.08,0.00012982,2]
[346983355,1735449050179,-500.0,0.00012982,2]
[346983356,1735449050188,-512.81282468,0.00012982,2]
[346983357,1735449050198,-500.0,0.00012982,2]
[346983358,1735449050207,-500.0,0.00012982,2]
[346983359,1735449050216,-500.0,0.00012982,2]
[346983360,1735449050226,-500.0,0.00012982,2]
[346983361,1735449050235,-500.0,0.00012982,2]
[346983362,1735449050244,-516.22808845,0.00012982,2]
[346983363,1735449050253,-500.0,0.00012982,2]
[346983364,1735449050263,-500.0,0.00012982,2]
[346983365,1735449050273,-500.0,0.00012982,2]
[346983366,1735449050283,-500.0,0.00012982,2]
[346983367,1735449050292,-500.0,0.00012982,2]
[346983368,1735449050301,-500.0,0.00012982,2]
[346983369,1735449050311,-500.0,0.00012982,2]
[346983370,1735449050320,-500.0,0.00012982,2]
[346983371,1735449050330,-500.0,0.00012982,2]
[346983372,1735449050339,-500.0,0.00012982,2]
[346983373,1735449050348,-1395.98,0.00012982,2]
[346983374,1735449050358,-500.0,0.00012982,2]
[346983375,1735449050368,-500.0,0.00012982,2]
[346983376,1735449050377,-500.0,0.00012982,2]
[346983377,1735449050387,-500.0,0.00012982,2]
[346983378,1735449050396,-500.0,0.00012982,2]
[346983379,1735449050405,-500.0,0.00012982,2]
[346983380,1735449050414,-500.0,0.00012982,2]
[346983381,1735449050423,-500.0,0.00012982,2]
[346983382,1735449050433,-500.0,0.00012982,2]
[346983383,1735449050442,-500.0,0.00012982,2]
[346983384,1735449050452,-500.0,0.00012982,2]
[346983385,1735449050461,-500.0,0.00012982,2]
[346983386,1735449050470,-4731.49,0.00012982,2]
[346983387,1735449050479,-7614.48,0.00012982,2]
[346983388,1735449050488,-500.0,0.00012982,2]
[346983389,1735449050497,-500.0,0.00012982,2]
[346983390,1735449050507,-554.46,0.00012982,2]
[346983391,1735449050516,-500.0,0.00012982,2]
[346983392,1735449050525,-500.0,0.00012982,2]
[346983393,1735449050534,-500.0,0.00012982,2]
[346983394,1735449050544,-830.19,0.00012982,2]
[346983395,1735449050553,-500.0,0.00012982,2]
[346983396,1735449050562,-500.0,0.00012982,2]
[346983397,1735449050571,-500.0,0.00012982,2]
[346983398,1735449050580,-500.0,0.00012982,2]
[346983399,1735449050590,-500.0,0.00012982,2]
[346983400,1735449050599,-512.19614904,0.00012982,2]
[346983401,1735449050609,-501.75828076,0.00012982,2]
[346983402,1735449050618,-500.0,0.00012982,2]
[346983403,1735449050628,-500.0,0.00012982,2]
[346983404,1735449050637,-1960.4,0.00012982,2]
[346983405,1735449050647,-258.83352308,0.00012982,2]
[346983406,1735449050656,-500.0,0.00012982,2]
[346983407,1735449050665,-500.0,0.00012982,2]
[346983408,1735449050674,-500.0,0.00012982,2]
[346983409,1735449050684,-506.73137512,0.00012982,2]
[346983410,1735449050693,-500.0,0.00012982,2]
[346983411,1735449050703,-217.81,0.00012982,2]
[346983412,1735449050712,-265.33457743,0.00012982,2]
[346983413,1735449050721,-500.0,0.00012982,2]
[346983414,1735449050731,-570.59,0.00012982,2]
[346983415,1735449050740,-500.0,0.00012982,2]
[346983416,1735449050750,-580.9,0.00012982,2]
[346983417,1735449050759,-500.0,0.00012982,2]
[346983418,1735449050769,-515.9137646,0.00012982,2]
[346983419,1735449050778,-500.0,0.00012982,2]
[346983420,1735449050787,-500.0,0.00012982,2]
[346983421,1735449050796,-507.32744375,0.00012982,2]
[346983422,1735449050805,-500.0,0.00012982,2]
[346983423,1735449050814,-500.0,0.00012982,2]
[346983424,1735449050824,-546.68723236,0.00012982,2]
[346983425,1735449050834,-500.0,0.00012982,2]
[346983426,1735449050843,-500.0,0.00012982,2]
[346983427,1735449050853,-503.17824891,0.00012982,2]
[346983428,1735449050863,-500.0,0.00012982,2]
[346983429,1735449050872,-500.0,0.00012982,2]
[346983430,1735449050882,-500.0,0.00012982,2]
[346983431,1735449050891,-500.0,0.00012982,2]
[346983432,1735449050901,-2241.7,0.00012982,2]
[346983433,1735449050911,-254.2749292,0.00012982,2]
[346983434,1735449050920,-500.0,0.00012982,2]
[346983435,1735449050930,-500.0,0.00012982,2]
[346983436,1735449050939,-500.0,0.00012982,2]
[346983437,1735449050948,-500.0,0.00012982,2]
[346983438,1735449050960,-500.0,0.00012982,2]
[346983439,1735449050969,-500.0,0.00012982,2]
[346983440,1735449050979,-512.53504172,0.00012982,2]
[346983441,1735449050988,-542.06956753,0.00012982,2]
[346983442,1735449050999,-500.0,0.00012982,2]
[346983443,1735449051008,-509.40453431,0.00012982,2]
[346983444,1735449051017,-500.0,0.00012982,2]
[346983445,1735449051027,-500.0,0.00012982,2]
[346983446,1735449051037,-500.0,0.00012982,2]
[346983447,1735449051047,-500.0,0.00012982,2]
[346983448,1735449051056,-500.0,0.00012982,2]
[346983449,1735449051065,-500.0,0.00012982,2]
[346983450,1735449051074,-500.0,0.00012982,2]
[346983451,1735449051084,-500.0,0.00012982,2]
[346983452,1735449051094,-465.40978061,0.00012982,2]
[346983453,1735449051103,-500.0,0.00012982,2]
[346983454,1735449051113,-500.0,0.00012982,2]
[346983455,1735449051122,-500.0,0.00012982,2]
[346983456,1735449051132,-500.0,0.00012982,2]
[346983457,1735449051142,-230.62642458,0.00012982,2]
[346983458,1735449051151,-502.29163337,0.00012982,2]
[346983459,1735449051160,-3642.39,0.00012982,2]
[346983460,1735449051170,-500.0,0.00012982,2]
[346983461,1735449051179,-500.0,0.00012982,2]
[346983462,1735449051188,-274.46229828,0.00012982,2]
[346983463,1735449051197,-500.0,0.00012982,2]
[346983464,1735449051206,-500.0,0.00012982,2]
[346983465,1735449051215,-505.79023768,0.00012982,2]
[346983466,1735449051225,-500.0,0.00012982,2]
[346983467,1735449051234,-500.0,0.00012982,2]
[346983468,1735449051243,-1092.96,0.00012982,2]
[346983469,1735449051252,-500.0,0.00012982,2]
[346983470,1735449051262,-500.0,0.00012982,2]
[346983471,1735449051272,-500.0,0.00012982,2]
[346983472,1735449051281,-317.53204858,0.00012982,2]
[346983473,1735449051290,-500.0,0.00012982,2]
[346983474,1735449051300,-500.0,0.00012982,2]
[346983475,1735449051309,-500.0,0.00012982,2]
[346983476,1735449051319,-500.0,0.00012982,2]
[346983477,1735449051328,-412.66792633,0.00012982,2]
[346983478,1735449051338,-500.0,0.00012982,2]
[346983479,1735449051347,-500.0,0.00012982,2]
[346983480,1735449051356,-500.0,0.00012982,2]
[346983481,1735449051367,-500.0,0.00012982,2]
[346983482,1735449051377,-500.0,0.00012982,2]
[346983483,1735449051386,-500.0,0.00012982,2]
[346983484,1735449051395,-500.0,0.00012982,2]
[346983485,1735449051404,-500.0,0.00012982,2]
[346983486,1735449051414,-500.0,0.00012982,2]
[346983487,1735449051424,-500.0,0.00012982,2]
[346983488,1735449051433,-500.0,0.00012982,2]
[346983489,1735449051443,-500.0,0.00012982,2]
[346983490,1735449051453,-1251.13,0.00012982,2]
[346983491,1735449051463,-500.0,0.00012982,2]
[346983492,1735449051473,-500.0,0.00012982,2]
[346983493,1735449051482,-500.0,0.00012982,2]
[346983494,1735449051491,-500.0,0.00012982,2]
[346983495,1735449051500,-500.0,0.00012982,2]
[346983496,1735449051509,-500.0,0.00012982,2]
[346983497,1735449051519,-500.0,0.00012982,2]
[346983498,1735449051529,-500.0,0.00012982,2]
[346983499,1735449051538,-503.3842615,0.00012982,2]
[346983500,1735449051548,-517.32465304,0.00012982,2]
[346983501,1735449051558,-500.0,0.00012982,2]
[346983502,1735449051567,-514.33491699,0.00012982,2]
[346983503,1735449051576,-500.0,0.00012982,2]
[346983504,1735449051586,-500.0,0.00012982,2]
[346983505,1735449051596,-500.0,0.00012982,2]
[346983506,1735449051616,-500.0,0.00012982,2]
[346983507,1735449051640,-500.0,0.00012982,2]
[346983508,1735449051649,-500.0,0.00012982,2]
[346983509,1735449051658,-500.0,0.00012982,2]
[346983510,1735449051667,-500.0,0.00012982,2]
[346983511,1735449051675,-500.0,0.00012982,2]
[346983512,1735449051684,-500.0,0.00012982,2]
[346983513,1735449051693,-500.0,0.00012982,2]
[346983514,1735449051702,-500.0,0.00012982,2]
[346983515,1735449051711,-517.18077488,0.00012982,2]
[346983516,1735449051720,-500.0,0.00012982,2]
[346983517,1735449051729,-500.0,0.00012982,2]
[346983518,1735449051737,-500.0,0.00012982,2]
[346983519,1735449051746,-561.05,0.00012982,2]
[346983520,1735449051756,-500.0,0.00012982,2]
[346983521,1735449051766,-601.43,0.00012982,2]
[346983522,1735449051776,-500.0,0.00012982,2]
[346983523,1735449051785,-378.00108506,0.00012982,2]
[346983524,1735449051794,-500.0,0.00012982,2]
[346983525,1735449051805,-519.5925557,0.00012982,2]
[346983526,1735449051815,-296.34082246,0.00012982,2]
[346983527,1735449051825,-802.35,0.00012982,2]
[346983528,1735449051834,-519.24759964,0.00012982,2]
[346983529,1735449051844,-500.0,0.00012982,2]
[346983530,1735449051853,-500.0,0.00012982,2]
[346983531,1735449051862,-520.8853982,0.00012982,2]
[346983532,1735449051872,-549.98483839,0.00012982,2]
[346983533,1735449051883,-500.0,0.00012982,2]
[346983534,1735449051892,-500.0,0.00012982,2]
[346983535,1735449051902,-500.0,0.00012982,2]
[346983536,1735449051911,-2652.12,0.00012982,2]
[346983537,1735449051920,-500.0,0.00012982,2]
[346983538,1735449051929,-500.0,0.00012982,2]
[346983539,1735449051939,-638.98231882,0.00012982,2]
[346983540,1735449051948,-500.0,0.00012982,2]
[346983541,1735449051961,-646.95,0.00012982,2]
[346983542,1735449051970,-500.0,0.00012983,2]
[346983543,1735449051979,-198.00556289,0.00012983,2]
[346983544,1735449051989,-500.0,0.00012983,2]
[346983545,1735449051998,-111.04288339,0.00012983,2]
[346983546,1735449052030,-388.95711661,0.00012983,2]
[346983547,1735449052041,-16.19788339,0.00012983,2]
[346983548,1735449193468,2000.0,0.00022905,120]
[346983586,1735449444516,2000.0,0.00015507,24]
[346983587,1735449444797,2000.0,0.00015507,24]
[346983588,1735449445085,2000.0,0.00015507,24]
[346983589,1735449445381,2000.0,0.00015507,24]
[346983590,1735449445684,2000.0,0.00015507,24]
[346983591,1735449445973,2000.0,0.00015507,24]
[346983614,1735449449749,2000.0,0.00015507,24]
[346983615,1735449454894,2000.0,0.00015507,24]
[346983616,1735449455387,2000.0,0.00015507,24]
[346983617,1735449455674,2000.0,0.00015507,24]
[346983618,1735449456042,2000.0,0.00015507,24]
[346983619,1735449456338,2000.0,0.00015507,24]
[346983620,1735449456668,2000.0,0.00015507,24]
[346983621,1735449456950,2000.0,0.00015507,24]
[346983622,1735449457561,2000.0,0.00015507,24]
[346983623,1735449457643,2000.0,0.00015507,24]
[346983624,1735449457854,2000.0,0.00015507,24]
[346983625,1735449472921,1000.0,0.00023,120]
[346983648,1735449497996,417.3,0.00023,120]
[346983733,1735450231573,-611.0,0.00010069,2]
[346983735,1735450231583,-152.66,0.00010137,2]
[346983737,1735450231594,-2267.2663894,0.00010199,5]
[346983739,1735450231606,-2113.28286315,0.00010199,5]
[346983741,1735450231632,-403.1786,0.00010199,5]
[346983742,1735450231644,-1535.79576675,0.00010199,5]
[346983743,1735450232023,-2391.1036951,0.00010199,5]
[346983836,1735450237595,-852.99136144,0.00010199,5]
[346983837,1735450237658,-436.38132416,0.00010199,5]
[346983838,1735450237672,-1063.37234665,0.00011088,2]
[346983839,1735450237688,-1391.24526133,0.00011088,2]
[346983840,1735450237702,-677.99912667,0.00011188,2]
[346983841,1735450237769,-380.39087333,0.00011188,2]
[346983842,1735450237782,-163.99083325,0.00011218,2]
[346983843,1735450237827,-331.20916675,0.00011218,2]
[346983844,1735450237840,-156.29,0.00011905,2]
[346983845,1735450237854,-156.29,0.00011909,2]
[346983846,1735450237866,-156.29,0.00011913,2]
[346983847,1735450237878,-156.29,0.00011917,2]
[346983848,1735450237889,-156.29,0.00011921,2]
[346983849,1735450237900,-156.29,0.00011925,2]
[346983850,1735450237911,-156.29,0.00011929,2]
[346983851,1735450237924,-156.29,0.00011933,2]
[346983852,1735450237938,-156.29,0.00011937,2]
[346983853,1735450237948,-156.29,0.00011941,2]
[346983854,1735450237958,-156.29,0.00011945,2]
[346983855,1735450237968,-156.29,0.00011949,2]
[346983856,1735450237979,-156.29,0.00011953,2]
[346983857,1735450237992,-156.29,0.00011957,2]
[346983858,1735450238003,-156.29,0.00011961,2]
[346983859,1735450238013,-156.29,0.00011965,2]
[346983860,1735450238024,-1000.0,0.00012041,2]
[346983861,1735450238035,-250.0,0.00012054,2]
[346983862,1735450238049,-156.82,0.00012073,2]
[346983863,1735450238061,-597.29,0.00012188,2]
[346983864,1735450238072,-611.0,0.00012333,2]
[346983865,1735450238083,-416.085,0.0001235,2]
[346983866,1735450238094,-150.0,0.00012611,2]
[346983867,1735450238106,-495.2,0.0001262,2]
[346983868,1735450238118,-731.97305321,0.0001298,2]
[346983869,1735450238154,-677.76929021,0.0001298,2]
[346983870,1735450238165,-500.0,0.0001298,2]
[346983871,1735450238176,-3704.44,0.0001298,2]
[346983872,1735450238187,-556.76,0.0001298,2]
[346983873,1735450238199,-5328.29,0.0001298,2]
[346983874,1735450238209,-2278.82,0.0001298,2]
[346983875,1735450238221,-5640.91,0.0001298,2]
[346983876,1735450238233,-1831.34,0.0001298,2]
[346983877,1735450238244,-3830.86,0.0001298,2]
[346983878,1735450238256,-1669.78,0.0001298,2]
[346983879,1735450238267,-500.0,0.0001298,2]
[346983880,1735450238278,-500.0,0.0001298,2]
[346983881,1735450238289,-500.0,0.0001298,2]
[346983882,1735450238301,-500.0,0.0001298,2]
[346983883,1735450238312,-500.0,0.0001298,2]
[346983884,1735450238323,-1438.92,0.0001298,2]
[346983885,1735450238335,-1225.9,0.0001298,2]
[346983886,1735450238346,-935.96,0.0001298,2]
[346983887,1735450238357,-192.25347772,0.0001298,2]
[346983888,1735450238369,-500.0,0.0001298,2]
[346983889,1735450238380,-500.0,0.0001298,2]
[346983890,1735450238391,-500.0,0.0001298,2]
[346983891,1735450238402,-537.4,0.0001298,2]
[346983892,1735450238413,-500.0,0.0001298,2]
[346983893,1735450238425,-871.05,0.0001298,2]
[346983894,1735450238435,-503.58239354,0.0001298,2]
[346983895,1735450238447,-561.7,0.0001298,2]
[346983896,1735450238457,-500.0,0.0001298,2]
[346983897,1735450238469,-1236.71,0.0001298,2]
[346983898,1735450238480,-157.582479,0.00012981,2]
[346983899,1735450238491,-1823.81,0.00012981,2]
[346983900,1735450238502,-500.0,0.00012981,2]
[346983901,1735450238514,-2035.18130744,0.00012981,2]
[346983902,1735450238529,-529.35222757,0.00012981,2]
[346983921,1735450239679,-598.82646499,0.00012981,2]
[346983922,1735450239691,-1376.35,0.00012981,2]
[346983923,1735450239703,-1533.16,0.00012981,2]
[346983924,1735450239715,-70.17284784,0.00012981,2]
[346983925,1735450239741,-1433.2,0.00012981,2]
[346983926,1735450239765,-1021.94715216,0.00012981,2]
[346983927,1735450239776,-994.55284784,0.00012981,2]
[346983928,1735450239923,-370.09715216,0.00012981,2]
[346983929,1735450239934,-156.141841,0.00012981,2]
[346983930,1735450239946,-155.399951,0.00012981,2]
[346983931,1735450239958,-537.9765927,0.00012981,2]
[346983932,1735450242576,-500.0,0.0001298,2]
[346983933,1735450242586,-311.8571153,0.00012981,2]
[346983935,1735450242596,-88.24863049,0.00012981,2]
[346983936,1735450242672,-1012.52136951,0.00012981,2]
[346983937,1735450242681,-608.314798,0.00012981,2]
[346983938,1735450242690,-9214.16,0.00012981,2]
[346983939,1735450242700,-1055.24,0.00012981,2]
[346983940,1735450242709,-1337.82,0.00012981,2]
[346983941,1735450242720,-1605.85,0.00012981,2]
[346983942,1735450242729,-500.0,0.00012981,2]
[346983943,1735450242739,-500.0,0.00012981,2]
[346983944,1735450242750,-500.0,0.00012981,2]
[346983945,1735450242760,-500.0,0.00012981,2]
[346983946,1735450242769,-500.0,0.00012981,2]
[346983947,1735450242778,-4534.35,0.00012981,2]
[346983948,1735450242788,-500.0,0.00012981,2]
[346983949,1735450242797,-500.0,0.00012981,2]
[346983950,1735450242806,-500.0,0.00012981,2]
[346983951,1735450242817,-500.0,0.00012981,2]
[346983952,1735450242826,-500.0,0.00012981,2]
[346983953,1735450242835,-1157.33,0.00012981,2]
[346983954,1735450242846,-500.0,0.00012981,2]
[346983955,1735450242855,-500.0,0.00012981,2]
[346983956,1735450242864,-517.45,0.00012981,2]
[346983957,1735450242874,-500.0,0.00012981,2]
[346983958,1735450242884,-500.0,0.00012981,2]
[346983959,1735450242893,-500.0,0.00012981,2]
[346983960,1735450242903,-500.0,0.00012981,2]
[346983961,1735450242912,-525.75560774,0.00012981,2]
[346983962,1735450242921,-500.0,0.00012981,2]
[346983963,1735450242931,-1047.42,0.00012981,2]
[346983964,1735450242940,-500.0,0.00012981,2]
[346983965,1735450242949,-500.0,0.00012981,2]
[346983966,1735450242958,-500.0,0.00012981,2]
[346983969,1735450242968,-619.76128715,0.00012981,2]
[346983970,1735450242978,-652.33,0.00012981,2]
[346983972,1735450242988,-136.99804138,0.00012981,2]
[346983975,1735450243001,-363.00195862,0.00012981,2]
[346983977,1735450243010,-500.0,0.00012981,2]
[346983979,1735450243019,-500.0,0.00012981,2]
[346983981,1735450243027,-500.0,0.00012981,2]
[346983983,1735450243036,-500.0,0.00012981,2]
[346983985,1735450243045,-500.0,0.00012981,2]
[346983987,1735450243055,-457.3898499,0.00012981,2]
[346983989,1735450243064,-500.0,0.00012981,2]
[346983991,1735450243073,-500.0,0.00012981,2]
[346983993,1735450243084,-500.0,0.00012981,2]
[346983995,1735450243093,-500.0,0.00012981,2]
[346983997,1735450243101,-500.0,0.00012981,2]
[346983998,1735450243110,-812.29,0.00012981,2]
[346983999,1735450243119,-500.0,0.00012981,2]
[346984000,1735450243129,-500.0,0.00012981,2]
[346984001,1735450243138,-500.0,0.00012981,2]
[346984002,1735450243148,-729.33,0.00012981,2]
[346984003,1735450243157,-832.18,0.00012981,2]
[346984004,1735450243168,-500.0,0.00012981,2]
[346984005,1735450243177,-772.09,0.00012981,2]
[346984006,1735450243187,-257.01385531,0.00012981,2]
[346984007,1735450243196,-427.64109996,0.00012981,2]
[346984008,1735450243206,-500.0,0.00012981,2]
[346984009,1735450243215,-500.0,0.00012981,2]
[346984010,1735450243226,-500.0,0.00012981,2]
[346984011,1735450243235,-500.0,0.00012981,2]
[346984012,1735450243245,-517.97,0.00012981,2]
[346984013,1735450243255,-500.0,0.00012981,2]
[346984014,1735450243264,-500.0,0.00012981,2]
[346984015,1735450243274,-502.99826661,0.00012981,2]
[346984016,1735450243283,-500.0,0.00012981,2]
[346984017,1735450243292,-500.0,0.00012981,2]
[346984018,1735450243301,-500.0,0.00012981,2]
[346984019,1735450243310,-500.0,0.00012981,2]
[346984020,1735450243320,-500.0,0.00012981,2]
[346984021,1735450243329,-500.0,0.00012981,2]
[346984022,1735450243338,-500.0,0.00012981,2]
[346984023,1735450243347,-1199.0,0.00012981,2]
[346984024,1735450243356,-500.0,0.00012981,2]
[346984025,1735450243366,-500.0,0.00012981,2]
[346984026,1735450243377,-500.0,0.00012981,2]
[346984027,1735450243387,-500.0,0.00012981,2]
[346984028,1735450243396,-500.0,0.00012981,2]
[346984029,1735450243406,-500.0,0.00012981,2]
[346984030,1735450243415,-500.0,0.00012981,2]
[346984031,1735450243424,-500.0,0.00012981,2]
[346984032,1735450243434,-629.37,0.00012981,2]
[346984033,1735450243443,-500.0,0.00012981,2]
[346984034,1735450243453,-500.0,0.00012981,2]
[346984035,1735450243462,-500.0,0.00012981,2]
[346984036,1735450243472,-500.0,0.00012981,2]
[346984037,1735450243481,-500.0,0.00012981,2]
[346984038,1735450243491,-500.0,0.00012981,2]
[346984039,1735450243500,-563.09,0.00012981,2]
[346984040,1735450243509,-500.0,0.00012981,2]
[346984041,1735450243523,-500.0,0.00012981,2]
[346984042,1735450243532,-500.0,0.00012981,2]
[346984043,1735450243541,-500.0,0.00012981,2]
[346984044,1735450243551,-500.0,0.00012981,2]
[346984045,1735450243561,-500.0,0.00012981,2]
[346984046,1735450243570,-576.37,0.00012981,2]
[346984047,1735450243579,-500.0,0.00012981,2]
[346984048,1735450243589,-898.47,0.00012981,2]
[346984049,1735450243599,-503.99147388,0.00012981,2]
[346984050,1735450243608,-500.0,0.00012981,2]
[346984051,1735450243617,-531.08,0.00012981,2]
[346984052,1735450243627,-500.0,0.00012981,2]
[346984053,1735450243636,-500.0,0.00012981,2]
[346984054,1735450243645,-500.0,0.00012981,2]
[346984055,1735450243655,-500.0,0.00012981,2]
[346984056,1735450243664,-500.0,0.00012981,2]
[346984057,1735450243673,-805.92,0.00012981,2]
[346984058,1735450243682,-877.58,0.00012981,2]
[346984059,1735450243691,-500.0,0.00012981,2]
[346984060,1735450243701,-548.67569561,0.00012981,2]
[346984061,1735450243710,-500.0,0.00012981,2]
[346984062,1735450243719,-500.0,0.00012981,2]
[346984063,1735450243728,-500.0,0.00012981,2]
[346984064,1735450243737,-500.0,0.00012981,2]
[346984065,1735450243747,-500.0,0.00012981,2]
[346984066,1735450243756,-500.0,0.00012981,2]
[346984067,1735450243765,-500.0,0.00012981,2]
[346984068,1735450243774,-379.46842757,0.00012981,2]
[346984069,1735450243783,-500.0,0.00012981,2]
[346984070,1735450243792,-500.0,0.00012981,2]
[346984071,1735450243801,-500.0,0.00012981,2]
[346984072,1735450243812,-500.0,0.00012981,2]
[346984073,1735450243821,-500.0,0.00012981,2]
[346984074,1735450243831,-500.0,0.00012981,2]
[346984075,1735450243840,-500.0,0.00012981,2]
[346984076,1735450243849,-257.15441996,0.00012981,2]
[346984077,1735450243863,-242.84558004,0.00012981,2]
[346984078,1735450243873,-500.0,0.00012981,2]
[346984079,1735450243882,-557.83346136,0.00012981,2]
[346984080,1735450243894,-317.92,0.00012981,2]
[346984081,1735450243912,-500.0,0.0001298,2]
[346984082,1735450243921,-131.89653864,0.00012981,2]
[346984083,1735450243930,-344.03346136,0.00012981,2]
[346984084,1735450245785,-500.0,0.0001298,2]
[346984085,1735450245795,-155.96653864,0.00012981,2]
[346984086,1735450245804,-500.0,0.00012981,2]
[346984087,1735450245814,-500.0,0.00012981,2]
[346984088,1735450245823,-500.0,0.00012981,2]
[346984089,1735450245833,-500.0,0.00012981,2]
[346984090,1735450245842,-119.77835956,0.00012981,2]
[346984091,1735450245854,-330.49842,0.00012981,2]
[346984092,1735450245865,-49.72322044,0.00012981,2]
[346984093,1735450245875,-500.0,0.00012981,2]
[346984094,1735450245884,-500.0,0.00012981,2]
[346984095,1735450245894,-500.0,0.00012981,2]
[346984096,1735450245903,-500.0,0.00012981,2]